bitfinex-derivatives/quotes_BNBF0:USTF0_20250309
["timestamp","ask_amount","ask_price","bid_price","bid_amount"]
[1741502083591,0.31417188,585.57,584.42,7.33521963]
[1741502083792,0.31417188,585.58,584.42,7.33521963]
[1741502083995,0.31417188,585.57,584.42,7.33521963]
[1741502084193,0.31417188,585.58,584.42,7.33521963]
[1741502084396,0.29754016,585.56,584.42,7.33521963]
[1741502084597,0.31417188,585.55,584.42,7.33521963]
[1741502085806,0.29754016,585.56,584.42,7.33521963]
[1741502086100,1.26952077,585.45,584.42,7.33521963]
[1741502086295,0.31417775,585.44,584.42,7.33521963]
[1741502088101,1.58369852,585.44,584.42,7.33521963]
[1741502088294,0.31417775,585.43,584.42,7.33521963]
[1741502088492,1.26952077,585.44,584.42,7.33521963]
[1741502088699,0.3141801,585.43,584.42,7.33521963]
[1741502089997,1.58370087,585.43,584.42,7.33521963]
[1741502090203,0.3141801,585.42,584.42,7.33521963]
[1741502090603,0.61175334,585.42,584.42,7.33521963]
[1741502090803,0.3141801,585.41,584.42,7.33521963]
[1741502092206,1.26952077,585.31,584.42,7.33521963]
[1741502092505,0.3141801,585.3,584.42,7.33521963]
[1741502093400,0.29758851,585.29,584.42,7.33521963]
[1741502093804,0.3141801,585.28,584.42,7.33521963]
[1741502095402,0.3141801,585.3,584.42,7.33521963]
[1741502095600,0.3141801,585.29,584.42,7.33521963]
[1741502095805,0.3141801,585.28,584.42,7.33521963]
[1741502096006,0.3141801,585.27,584.42,7.33521963]
[1741502096201,0.3141801,585.26,584.42,7.33521963]
[1741502096404,0.3141801,585.25,584.42,7.33521963]
[1741502098403,0.3141801,585.33,584.42,7.33521963]
[1741502098711,1.26952077,585.34,584.42,7.33521963]
[1741502098908,0.31422527,585.33,584.42,7.33521963]
[1741502099605,0.29758469,585.32,584.42,7.33521963]
[1741502099805,0.31422527,585.31,584.42,7.33521963]
[1741502100606,0.31421517,585.3,584.42,7.33521963]
[1741502100808,0.31421517,585.31,584.42,7.33521963]
[1741502101106,0.31421517,585.3,584.42,7.33521963]
[1741502101306,0.31421517,585.31,584.42,7.33521963]
[1741502101503,0.31421517,585.3,584.42,7.33521963]
[1741502101703,0.31421517,585.31,584.42,7.33521963]
[1741502104512,0.6118024,585.3,584.42,7.33521963]
[1741502104709,0.31421517,585.29,584.42,7.33521963]
[1741502107413,0.31421517,585.41,584.42,7.33521963]
[1741502107620,0.29758978,585.28,584.42,7.33521963]
[1741502107817,0.31421517,585.27,584.42,7.33521963]
[1741502108117,1.52342492,585.55,584.42,7.33521963]
[1741502108118,0.31421517,585.26,584.42,7.33521963]
[1741502108315,0.31421517,585.4,584.42,7.33521963]
[1741502108518,0.29757451,585.26,584.42,7.33521963]
[1741502108712,0.31421517,585.25,584.42,7.33521963]
[1741502109014,1.26952077,585.41,584.42,7.33521963]
[1741502109219,0.31427328,585.4,584.42,7.33521963]
[1741502110119,0.29760378,585.39,584.42,7.33521963]
[1741502110420,0.31427328,585.38,584.42,7.33521963]
[1741502112721,0.31428912,585.37,584.42,7.33521963]
[1741502112922,0.31428912,585.38,584.42,7.33521963]
[1741502113118,0.31428912,585.37,584.42,7.33521963]
[1741502113420,0.31428912,585.36,584.42,7.33521963]
[1741502113617,0.29760632,585.36,584.42,7.33521963]
[1741502113816,0.31428912,585.35,584.42,7.33521963]
[1741502115519,0.31430445,585.34,584.42,7.33521963]
[1741502115917,0.31430445,585.33,584.42,7.33521963]
[1741502116117,0.31430445,585.32,584.42,7.33521963]
[1741502116319,0.31430445,585.46,584.42,7.33521963]
[1741502116522,0.29761014,585.32,584.42,7.33521963]
[1741502116823,0.31430445,585.31,584.42,7.33521963]
[1741502117022,0.31430445,585.3,584.42,7.33521963]
[1741502117220,0.31430445,585.43,584.42,7.33521963]
[1741502117422,0.31430445,585.42,584.42,7.33521963]
[1741502117626,0.29759996,585.29,584.42,7.33521963]
[1741502117825,0.31430445,585.28,584.42,7.33521963]
[1741502118025,0.2976025,585.28,584.42,7.33521963]
[1741502118225,0.31430445,585.27,584.42,7.33521963]
[1741502119524,0.29762032,585.26,584.42,7.33521963]
[1741502119925,0.31427741,585.25,584.42,7.33521963]
[1741502120323,0.29762032,585.26,584.42,7.33521963]
[1741502121519,0.31425048,585.25,584.42,7.33521963]
[1741502122522,0.31425048,585.42,584.42,7.33521963]
[1741502122719,0.31425048,585.41,584.42,7.33521963]
[1741502123024,0.31425048,585.4,584.42,7.33521963]
[1741502123219,0.31425048,585.42,584.42,7.33521963]
[1741502123425,0.29757706,585.39,584.42,7.33521963]
[1741502123626,0.31425048,585.38,584.42,7.33521963]
[1741502125425,0.31423368,585.37,584.42,7.33521963]
[1741502125627,0.31423368,585.36,584.42,7.33521963]
[1741502125826,0.31423368,585.35,584.42,7.33521963]
[1741502126028,0.31423368,585.41,584.42,7.33521963]
[1741502126230,0.31423368,585.4,584.42,7.33521963]
[1741502126428,0.31423368,585.41,584.42,7.33521963]
[1741502126625,0.61180565,585.4,584.42,7.33521963]
[1741502126824,0.31423368,585.39,584.42,7.33521963]
[1741502127228,1.56709274,585.4,584.42,7.33521963]
[1741502127428,0.31420982,585.39,584.42,7.33521963]
[1741502128533,0.29757451,585.38,584.42,7.33521963]
[1741502128731,0.31420982,585.37,584.42,7.33521963]
[1741502131539,0.31420982,585.42,584.42,7.33521963]
[1741502131738,0.29757706,585.36,584.42,7.33521963]
[1741502131940,0.31420982,585.35,584.42,7.33521963]
[1741502133836,0.29757706,585.36,584.42,7.33521963]
[1741502134040,0.31420596,585.35,584.42,7.33521963]
[1741502134636,0.61178556,585.34,584.42,7.33521963]
[1741502134840,0.31420596,585.33,584.42,7.33521963]
[1741502137543,0.29758215,585.32,584.42,7.33521963]
[1741502138043,0.31420596,585.31,584.42,7.33521963]
[1741502140445,0.31420596,585.3,584.42,7.33521963]
[1741502140745,0.31420596,585.29,584.42,7.33521963]
[1741502141837,0.29758342,585.3,584.42,7.33521963]
[1741502141838,0.31420835,585.28,584.42,7.33521963]
[1741502142043,0.31420835,585.29,584.42,7.33521963]
[1741502142243,0.29758342,585.3,584.42,7.33521963]
[1741502142441,0.31421093,585.28,584.42,7.33521963]
[1741502142644,0.29758342,585.3,584.42,7.33521963]
[1741502143040,0.31420805,585.29,584.42,7.33521963]
[1741502143441,0.29757451,585.28,584.42,7.33521963]
[1741502144747,0.31420774,585.27,584.42,7.33521963]
[1741502145946,0.29757451,585.28,584.42,7.33521963]
[1741502146243,0.34162922,585.43,584.42,7.33521963]
[1741502146443,0.31416788,585.42,584.42,7.33521963]
[1741502147350,0.29753762,585.41,584.42,7.33521963]
[1741502147747,0.31416391,585.4,584.42,7.33521963]
[1741502152655,0.34162922,585.43,584.42,7.33521963]
[1741502152656,0.29753508,585.39,584.42,7.33521963]
[1741502155258,0.34162922,585.43,584.42,7.33521963]
[1741502155455,0.31413636,585.42,584.42,7.33521963]
[1741502155659,0.29753126,585.38,584.42,7.33521963]
[1741502156957,1.26952077,585.59,584.42,7.33521963]
[1741502157158,0.3141215,585.58,584.42,7.33521963]
[1741502157862,0.3141215,585.59,584.42,7.33521963]
[1741502158063,0.3141215,585.58,584.42,7.33521963]
[1741502158263,0.3141215,585.59,584.42,7.33521963]
[1741502158458,0.29748548,585.57,584.42,7.33521963]
[1741502158664,0.31412025,585.56,584.42,7.33521963]
[1741502160261,0.29748548,585.57,584.42,7.33521963]
[1741502160467,0.31408594,585.56,584.42,7.33521963]
[1741502161464,0.31408594,585.67,584.42,7.33521963]
[1741502161664,0.31408594,585.66,584.42,7.33521963]
[1741502161863,0.31408594,585.67,584.42,7.33521963]
[1741502162565,0.29746514,585.66,584.42,7.33521963]
[1741502162766,0.31408594,585.65,584.42,7.33521963]
[1741502164465,0.31408594,585.74,584.42,7.33521963]
[1741502164661,0.29746768,585.64,584.42,7.33521963]
[1741502164865,0.31408594,585.63,584.42,7.33521963]
[1741502165066,0.31408594,585.74,584.42,7.33521963]
[1741502165264,0.31408594,585.73,584.42,7.33521963]
[1741502165463,0.31408594,585.74,584.42,7.33521963]
[1741502165665,0.29745624,585.72,584.42,7.33521963]
[1741502165869,0.31408594,585.71,584.42,7.33521963]
[1741502167169,0.314084,585.7,584.42,7.33521963]
[1741502167469,0.314084,585.69,584.42,7.33521963]
[1741502167670,0.314084,585.68,584.42,7.33521963]
[1741502167868,0.314084,585.67,584.42,7.33521963]
[1741502168069,0.314084,585.66,584.42,7.33521963]
[1741502168268,0.314084,585.65,584.42,7.33521963]
[1741502168462,0.314084,585.64,584.42,7.33521963]
[1741502169070,0.29744352,585.65,584.42,7.33521963]
[1741502169270,0.31408238,585.63,584.42,7.33521963]
[1741502169466,0.31408238,585.62,584.42,7.33521963]
[1741502169771,0.31408238,585.61,584.42,7.33521963]
[1741502169971,0.31408238,585.64,584.42,7.33521963]
[1741502170271,0.31408238,585.63,584.42,7.33521963]
[1741502170470,0.31408238,585.62,584.42,7.33521963]
[1741502170665,0.6556066,585.61,584.42,6.993]
[1741502170870,0.34153588,585.59,584.42,6.993]
[1741502171069,0.3142978,585.58,584.42,6.993]
[1741502171267,0.65584535,585.57,584.42,6.993]
[1741502171474,0.65585118,585.56,584.42,6.993]
[1741502171665,0.65585701,585.55,584.42,6.993]
[1741502171869,0.65586285,585.54,584.42,6.993]
[1741502172066,0.65586868,585.53,584.42,6.993]
[1741502172266,0.65587451,585.52,584.42,6.993]
[1741502172569,0.65588035,585.51,584.42,6.993]
[1741502172769,0.65588618,585.5,584.42,6.993]
[1741502172968,0.65589202,585.49,584.42,6.993]
[1741502173167,1.26952077,585.41,584.42,6.993]
[1741502173370,0.3142978,585.4,584.42,6.993]
[1741502173566,0.61190158,585.4,584.42,6.993]
[1741502173767,0.3142978,585.39,584.42,6.993]
[1741502174370,0.34166424,585.37,584.42,6.993]
[1741502174767,0.3142978,585.36,584.42,6.993]
[1741502175067,0.34168175,585.34,584.42,6.993]
[1741502175373,0.3142978,585.33,584.42,6.993]
[1741502175572,0.34169927,585.31,584.42,6.993]
[1741502175771,0.3142978,585.3,584.42,6.993]
[1741502175967,0.34171678,585.28,584.42,6.993]
[1741502176167,0.3142978,585.27,584.42,6.993]
[1741502176369,0.34172846,585.26,584.42,6.993]
[1741502176568,0.3142978,585.25,584.42,6.993]
[1741502176874,0.34174014,585.24,584.42,6.993]
[1741502177069,0.3142978,585.23,584.42,6.993]
[1741502177268,0.34175181,585.22,584.42,6.993]
[1741502177568,0.3142978,585.21,584.42,6.993]
[1741502177773,0.34176349,585.2,584.42,6.993]
[1741502177973,0.3142978,585.19,584.42,6.993]
[1741502178276,0.34177518,585.18,584.42,6.993]
[1741502178477,0.3142978,585.17,584.42,6.993]
[1741502178677,0.34178686,585.16,584.42,6.993]
[1741502178877,0.3142978,585.15,584.42,6.993]
[1741502179072,0.34179854,585.14,584.42,6.993]
[1741502179272,0.3142978,585.13,584.42,6.993]
[1741502179880,0.31444409,585.12,584.42,6.993]
[1741502180073,0.31444409,585.13,584.42,6.993]
[1741502180275,0.31444409,585.12,584.42,6.993]
[1741502180472,0.29770179,585.11,584.42,6.993]
[1741502180778,0.31444047,585.1,584.42,6.993]
[1741502183081,0.31444047,585.13,584.42,6.993]
[1741502183282,0.31444047,585.12,584.42,6.993]
[1741502183482,0.31444047,585.13,584.42,6.993]
[1741502183678,0.31443146,585.12,584.42,6.993]
[1741502183982,0.31443146,585.11,584.42,6.993]
[1741502184182,0.31443146,585.1,584.42,6.993]
[1741502184375,0.31443146,585.13,584.42,6.993]
[1741502184580,0.34179854,585.14,584.42,6.993]
[1741502184780,0.31443575,585.13,584.42,6.993]
[1741502185683,0.34179854,585.14,584.42,6.993]
[1741502193297,0.29753762,585.13,584.42,6.993]
[1741502194392,0.34179854,585.14,584.42,6.993]
[1741502195692,0.29753635,585.13,584.42,6.993]
[1741502196294,0.31437265,585.12,584.42,6.993]
[1741502197497,0.31437265,585.13,584.42,6.993]
[1741502197790,0.31437265,585.12,584.42,6.993]
[1741502197995,0.31437265,585.13,584.42,6.993]
[1741502198192,0.31437265,585.12,584.42,6.993]
[1741502198396,0.31437265,585.13,584.42,6.993]
[1741502198698,0.61201588,585.12,584.42,6.993]
[1741502198994,0.31437265,585.11,584.42,6.993]
[1741502200501,0.31437265,585.1,584.42,6.993]
[1741502200693,0.29764578,585.1,584.42,6.993]
[1741502203396,0.34179854,585.14,584.42,6.993]
[1741502203598,0.29764323,585.09,584.42,6.993]
[1741502206297,0.34179854,585.14,584.42,6.993]
[1741502206603,0.29764323,585.08,584.42,6.993]
[1741502208202,0.31433525,585.07,584.42,6.993]
[1741502208997,0.29764323,585.08,584.42,6.993]
[1741502209405,0.34179854,585.14,584.42,6.993]
[1741502209603,0.29765596,585.07,584.42,6.993]
[1741502209800,0.34179854,585.14,584.42,6.993]
[1741502210003,0.31435347,585.13,584.42,6.993]
[1741502210604,0.29765596,585.12,584.42,6.993]
[1741502211498,0.29765596,585.12,584.42,6.259]
[1741502211699,0.29765596,585.12,584.42,5.43]
[1741502212301,0.34179854,585.14,584.42,5.43]
[1741502212504,0.31436219,585.13,584.42,5.43]
[1741502212904,0.34179854,585.14,584.42,5.43]
[1741502213200,0.31440295,585.13,584.42,5.43]
[1741502213600,0.61205509,585.13,584.42,5.43]
[1741502213806,0.31439749,585.12,584.42,5.43]
[1741502215109,0.29765214,585.13,584.42,5.43]
[1741502215307,0.31440097,585.12,584.42,5.43]
[1741502215511,0.31440097,585.13,584.42,5.43]
[1741502215709,0.61208239,585.12,584.42,5.43]
[1741502215909,0.31440097,585.11,584.42,5.43]
[1741502216108,1.26952077,585.03,584.42,5.43]
[1741502216308,0.31440097,585.02,584.42,5.43]
[1741502218716,0.29769543,585.01,584.42,5.43]
[1741502218911,0.31440097,585.0,584.42,5.43]
[1741502220314,0.29769543,585.01,584.42,5.43]
[1741502220522,0.31443511,585.0,584.42,5.43]
[1741502224019,1.26952077,584.98,584.42,5.43]
[1741502224214,0.31443511,584.97,584.42,5.43]
[1741502224618,0.61217256,584.97,584.42,5.43]
[1741502224818,0.31443511,584.96,584.42,5.43]
[1741502225422,0.29773745,584.97,584.42,5.43]
[1741502225423,0.31447527,584.95,584.42,5.43]
[1741502225616,0.31447527,584.96,584.42,5.43]
[1741502225815,0.31447527,584.95,584.42,5.43]
[1741502226018,0.31447527,584.94,584.42,5.43]
[1741502226322,0.31447527,584.93,584.42,5.43]
[1741502226619,0.29773745,584.97,584.42,5.43]
[1741502226620,0.31447527,584.92,584.42,5.43]
[1741502226821,0.31447527,584.96,584.42,5.43]
[1741502227015,0.31447527,584.95,584.42,5.43]
[1741502227215,0.31447527,584.94,584.42,5.43]
[1741502227417,0.31447527,584.93,584.42,5.43]
[1741502227614,0.31447527,584.92,584.42,5.43]
[1741502227820,0.29773873,584.94,584.42,5.43]
[1741502228120,0.31447527,584.93,584.42,5.43]
[1741502230618,0.31447527,584.92,584.42,5.43]
[1741502231017,0.31447527,584.91,584.42,5.43]
[1741502231218,0.31447527,585.13,584.42,4.758]
[1741502231421,0.31447527,585.12,584.42,4.758]
[1741502231621,0.29771707,584.9,584.42,4.758]
[1741502231821,0.31447527,584.89,584.42,4.639]
[1741502232019,0.31447527,585.13,583.67,0.29771707]
[1741502232222,0.34179854,585.14,583.67,0.29771707]
[1741502232223,0.31447527,585.12,583.67,0.29771707]
[1741502232422,0.31447527,585.13,583.67,0.29771707]
[1741502232624,0.31447527,585.12,583.68,0.3426535]
[1741502232823,0.61232485,585.11,583.68,0.3426535]
[1741502233026,0.31447527,585.1,583.68,0.3426535]
[1741502233622,0.31447527,585.11,583.68,0.3426535]
[1741502233820,0.31447527,585.1,583.68,0.3426535]
[1741502234025,0.31447527,585.11,583.68,0.3426535]
[1741502234227,0.34181022,585.12,583.68,0.3426535]
[1741502234427,0.31444247,585.1,583.68,1.2566535]
[1741502234726,0.31444247,585.09,583.68,1.2566535]
[1741502235127,1.26952077,585.08,583.68,5.6986535]
[1741502235321,0.31444247,585.07,583.68,5.6986535]
[1741502237523,0.29778586,585.06,583.68,5.6986535]
[1741502237728,0.31444247,585.05,583.68,5.6986535]
[1741502239624,0.31444247,585.11,583.68,5.6986535]
[1741502239826,0.31444247,585.1,583.68,5.6986535]
[1741502240023,0.31444247,585.09,583.68,5.6986535]
[1741502240224,0.31444247,585.11,583.68,5.6986535]
[1741502240424,0.34181022,585.12,583.68,5.6986535]
[1741502240425,0.29776038,585.08,583.68,5.6986535]
[1741502240627,0.31444247,585.07,583.68,5.6986535]
[1741502242425,0.31444247,585.11,583.68,5.6986535]
[1741502242626,0.31444247,585.1,583.68,5.6986535]
[1741502242826,0.34181022,585.12,583.68,5.6986535]
[1741502242827,0.31444247,585.11,583.68,5.6986535]
[1741502243126,0.31444247,585.1,583.68,5.6986535]
[1741502243331,0.34181022,585.12,583.68,5.6986535]
[1741502243332,0.31444247,585.11,583.68,5.6986535]
[1741502243532,0.29776038,585.09,583.68,5.6986535]
[1741502243830,0.31444247,585.08,583.68,5.6986535]
[1741502245730,0.31444247,585.07,583.68,5.6986535]
[1741502246028,0.31444247,585.06,583.68,5.6986535]
[1741502246232,0.31444247,585.05,583.68,5.6986535]
[1741502246531,0.31444247,585.04,583.68,5.6986535]
[1741502246928,0.29774255,585.05,583.68,5.6986535]
[1741502247131,0.31435137,585.04,583.68,5.6986535]
[1741502247331,0.31435137,585.04,583.73,1.27617162]
[1741502247532,0.31435137,585.04,583.75,0.34261241]
[1741502248627,0.31435137,585.11,583.75,0.34261241]
[1741502248833,0.31441687,585.1,583.75,0.34261241]
[1741502249030,0.31441687,585.11,583.75,0.34261241]
[1741502249528,0.29777949,585.1,583.75,0.34261241]
[1741502249732,0.31441687,585.09,583.75,0.34261241]
[1741502250531,0.31441693,585.08,583.75,0.34261241]
[1741502250733,0.31441693,585.07,583.75,0.34261241]
[1741502251033,0.31441693,585.06,583.75,0.34261241]
[1741502251234,0.31441693,585.09,583.75,0.34261241]
[1741502251730,0.31441693,585.11,583.75,0.34261241]
[1741502251935,1.61133099,585.12,583.75,0.34261241]
[1741502251936,0.31441693,585.1,583.75,0.34261241]
[1741502252236,0.31441693,585.09,583.75,0.34261241]
[1741502252431,0.29778586,585.09,583.75,0.34261241]
[1741502252633,0.31441693,585.08,583.75,0.34261241]
[1741502253438,0.31441693,585.08,583.76,0.12]
[1741502253640,0.31441693,585.08,583.78,0.34259481]
[1741502254539,0.31441693,585.07,583.78,0.34259481]
[1741502254740,0.29777057,585.07,583.78,0.34259481]
[1741502255040,0.31441693,585.06,583.78,0.34259481]
[1741502257646,0.2977693,585.05,583.78,0.34259481]
[1741502258043,0.31441693,585.04,583.78,0.34259481]
[1741502259552,0.2977693,585.05,583.78,0.34259481]
[1741502259743,0.31440239,585.04,583.78,0.34259481]
[1741502260649,0.61217041,585.03,583.78,0.34259481]
[1741502260948,0.31440239,585.02,583.78,0.34259481]
[1741502263243,0.29776802,585.03,583.78,0.34259481]
[1741502263444,0.31439208,585.02,583.78,0.34259481]
[1741502263643,0.29777057,585.01,583.78,0.34259481]
[1741502263849,0.31439208,585.0,583.78,0.34259481]
[1741502264449,0.31439208,585.0,583.78,1.10059481]
[1741502265347,0.31439208,585.0,583.78,1.95959481]
[1741502266442,1.26952077,585.09,583.78,2.05459481]
[1741502266443,0.31439208,584.99,583.78,2.05459481]
[1741502266648,0.31439208,585.08,583.78,2.05459481]
[1741502267453,0.29775274,585.07,583.78,3.09259481]
[1741502267656,0.31439208,585.06,583.78,3.84359481]
[1741502268254,0.31439208,585.06,583.78,4.62159481]
[1741502269554,1.58391285,585.06,583.78,4.62159481]
[1741502269756,0.31439208,585.05,583.78,4.62159481]
[1741502272365,1.26952077,585.04,583.78,4.62159481]
[1741502272563,0.31439208,585.03,583.78,4.62159481]
[1741502274264,0.31438663,585.02,583.78,4.62159481]
[1741502274460,0.31438663,585.03,583.78,4.62159481]
[1741502274667,0.31438663,585.02,583.78,4.62159481]
[1741502274860,0.31438663,585.03,583.78,4.62159481]
[1741502275067,0.31438663,585.02,583.78,5.89776643]
[1741502275362,0.31438663,585.01,583.78,5.89776643]
[1741502275566,0.31438663,585.0,583.78,5.89776643]
[1741502275767,0.31438663,585.03,583.78,5.89776643]
[1741502275962,0.31438663,585.02,583.78,5.89776643]
[1741502276166,0.31438663,585.01,583.78,5.89776643]
[1741502276361,0.31438663,585.0,583.78,5.89776643]
[1741502276565,0.31438663,584.99,583.78,5.89776643]
[1741502276761,0.31438663,584.98,583.78,5.89776643]
[1741502276966,0.31438663,585.0,583.78,5.89776643]
[1741502277262,0.31438663,584.99,583.78,5.89776643]
[1741502277466,0.29776802,585.01,583.78,5.89776643]
[1741502277663,0.31438239,585.0,583.78,5.89776643]
[1741502278065,0.31438239,585.0,583.79,1.27617162]
[1741502278261,0.31438239,585.0,583.81,0.3425772]
[1741502278466,0.31438239,585.03,583.81,0.3425772]
[1741502278667,0.29776293,584.99,583.81,0.3425772]
[1741502281364,1.61133099,585.12,583.81,0.3425772]
[1741502281564,0.31437822,585.11,583.81,0.3425772]
[1741502281764,0.29775019,584.98,583.81,0.3425772]
[1741502281964,1.61133099,585.12,583.81,0.3425772]
[1741502282162,0.31437158,585.11,583.81,0.3425772]
[1741502282470,1.61133099,585.12,583.81,0.3425772]
[1741502282768,0.29774892,585.1,583.81,0.3425772]
[1741502283068,0.31437319,585.09,583.81,0.3425772]
[1741502283968,0.31437319,585.09,583.81,1.1795772]
[1741502284767,0.29773873,585.08,583.81,1.1795772]
[1741502285075,0.31437319,585.07,583.81,1.1795772]
[1741502286273,0.31435205,585.06,583.81,1.1795772]
[1741502286467,0.31435205,585.07,583.81,1.1795772]
[1741502286672,0.31435205,585.06,583.81,1.2995772]
[1741502286873,0.31435205,585.07,583.81,1.2995772]
[1741502287069,0.31435205,585.06,583.81,1.2995772]
[1741502287269,0.31435205,585.07,583.81,1.2995772]
[1741502287468,0.31435205,585.06,583.81,1.2995772]
[1741502287669,0.31435205,585.11,583.81,1.2995772]
[1741502287869,0.31435205,585.05,583.81,1.2995772]
[1741502288069,0.31435205,585.04,583.81,1.2995772]
[1741502288369,0.31435205,585.03,583.81,1.2995772]
[1741502288569,0.29773618,585.03,583.81,1.2995772]
[1741502288775,0.31435205,585.02,583.81,1.2995772]
[1741502289177,0.29773618,585.03,583.81,1.2995772]
[1741502290270,1.26952077,585.15,583.81,1.2995772]
[1741502290577,0.31433465,585.14,583.81,1.2995772]
[1741502290877,1.26952077,585.15,583.81,1.2995772]
[1741502291277,0.31431401,585.14,583.81,1.2995772]
[1741502291477,0.29770434,585.14,583.81,1.2995772]
[1741502291673,0.29770434,585.14,583.83,1.27617162]
[1741502291877,0.29770434,585.14,583.85,0.34255373]
[1741502292472,0.29770434,585.14,583.86,0.781]
[1741502292679,0.29770434,585.14,583.88,0.34253613]
[1741502293270,1.26952077,585.17,583.88,0.34253613]
[1741502293472,0.31431426,585.16,583.89,0.759]
[1741502293678,0.31431426,585.16,583.91,0.34251853]
[1741502294073,1.26952077,585.17,583.91,0.34251853]
[1741502294279,1.26952077,585.17,583.91,1.06351853]
[1741502294480,0.29768651,585.16,583.91,1.06351853]
[1741502294779,0.29768651,585.16,583.91,2.01151853]
[1741502295681,0.31431873,585.15,583.91,2.01151853]
[1741502296481,1.26952077,585.38,583.91,2.01151853]
[1741502296777,0.31431842,585.37,583.91,2.01151853]
[1741502297683,0.29765723,585.36,583.91,2.01151853]
[1741502297877,0.31431842,585.35,583.91,2.01151853]
[1741502298783,0.31431842,585.35,583.91,2.10651853]
[1741502300081,0.31431842,585.35,583.91,3.19551853]
[1741502300480,1.56718055,585.34,583.91,3.19551853]
[1741502300682,0.31431842,585.33,583.91,3.19551853]
[1741502302483,0.31431744,585.32,583.91,3.19551853]
[1741502302684,0.29766232,585.32,583.91,3.19551853]
[1741502302886,0.31431744,585.31,583.91,3.19551853]
[1741502304081,1.56718309,585.32,583.91,3.19551853]
[1741502304286,0.31431465,585.31,583.91,3.19551853]
[1741502304487,1.26952077,585.27,583.91,3.19551853]
[1741502304688,0.31431465,585.26,583.91,3.19551853]
[1741502305786,0.31431465,585.26,583.91,3.31451853]
[1741502306691,0.29767124,585.25,583.91,3.31451853]
[1741502306883,0.31431465,585.24,583.91,3.31451853]
[1741502308595,0.29767378,585.23,583.91,3.31451853]
[1741502308993,0.31431465,585.22,583.91,3.31451853]
[1741502310599,1.58383542,585.22,583.91,3.31451853]
[1741502310797,0.31431465,585.21,583.91,3.31451853]
[1741502312699,0.2976776,585.2,583.91,3.31451853]
[1741502312892,0.31431465,585.19,583.91,3.31451853]
[1741502313699,0.31431465,585.19,583.91,4.45051853]
[1741502314603,1.26952077,585.21,583.91,4.45051853]
[1741502314604,0.31431465,585.2,583.91,4.45051853]
[1741502314806,0.31431465,585.19,583.91,4.45051853]
[1741502315000,0.31431465,585.2,583.91,4.45051853]
[1741502315204,1.26952077,585.19,583.91,4.45051853]
[1741502315500,0.31431465,585.18,583.91,4.45051853]
[1741502317701,0.29768142,585.17,583.91,4.45051853]
[1741502317906,0.31431465,585.16,583.91,4.45051853]
[1741502320202,0.29768142,585.17,583.91,4.45051853]
[1741502320406,1.26952077,585.18,583.91,4.45051853]
[1741502320608,1.26952077,585.27,583.91,4.45051853]
[1741502320807,0.31429274,585.26,583.91,4.45051853]
[1741502321411,1.26952077,585.27,583.91,4.45051853]
[1741502321712,0.29765341,585.25,583.91,4.45051853]
[1741502321912,0.29765341,585.25,583.91,5.24451853]
[1741502322413,0.31427747,585.24,583.91,5.24451853]
[1741502322808,0.29765341,585.25,583.91,5.24451853]
[1741502323407,1.26952077,585.41,583.91,5.24451853]
[1741502323608,0.29762287,585.26,583.91,5.24451853]
[1741502323811,1.26952077,585.41,583.91,5.24451853]
[1741502324010,0.31424465,585.4,583.91,5.24451853]
[1741502324513,0.31424465,585.4,583.93,1.27617162]
[1741502324712,0.29762287,585.39,583.95,0.34249507]
[1741502324911,0.31424465,585.38,583.95,0.34249507]
[1741502325707,0.29762287,585.39,583.95,0.34249507]
[1741502325912,0.31422055,585.38,583.95,0.34249507]
[1741502326313,1.26952077,585.43,583.95,0.34249507]
[1741502326509,0.31421955,585.42,583.95,0.34249507]
[1741502327714,0.29761523,585.41,583.95,0.34249507]
[1741502328111,0.31421955,585.4,583.96,1.125]
[1741502328308,0.31421955,585.4,583.98,0.34247748]
[1741502329514,0.31421955,585.57,583.98,0.34247748]
[1741502329712,0.31421955,585.56,583.98,0.34247748]
[1741502329917,0.31421955,585.55,583.98,0.34247748]
[1741502330219,0.31421955,585.54,583.98,0.34247748]
[1741502330413,0.31421955,585.53,583.98,0.34247748]
[1741502330611,0.31421955,585.52,583.98,0.34247748]
[1741502330815,0.31421955,585.51,583.98,0.34247748]
[1741502331115,0.29757197,585.54,583.98,0.34247748]
[1741502331315,0.31419322,585.53,583.98,0.34247748]
[1741502332417,0.31419322,585.53,583.99,0.72]
[1741502332618,0.31419322,585.65,584.01,0.34245988]
[1741502332818,0.31419322,585.64,584.01,0.34245988]
[1741502333118,0.31419322,585.63,584.01,0.34245988]
[1741502333313,0.31419322,585.62,584.01,0.34245988]
[1741502333511,0.31419322,585.61,584.01,0.34245988]
[1741502333713,0.31419322,585.6,584.01,0.34245988]
[1741502333916,0.31419322,585.59,584.01,0.34245988]
[1741502334119,0.31419322,585.61,584.02,0.844]